bitfinex/quotes_ETHUSD_20240718
["timestamp","ask_amount","ask_price","bid_price","bid_amount"]
[1721304192861,2.433,3467.4,3466.8,0.06790048]
[1721304193067,3.253078,3467.4,3466.8,0.06790048]
[1721304193215,3.253078,3467.4,3466.8,2.95240048]
[1721304193559,3.253078,3467.4,3466.8,0.06790048]
[1721304193560,2.433,3467.4,3466.8,0.06790048]
[1721304193716,2.433,3467.4,3466.9,2.88441]
[1721304193918,2.88383,3467.6,3466.9,2.88441]
[1721304194309,2.4096,3467.8,3467.0,0.0678541]
[1721304194542,2.4096,3467.8,3467.2,2.88412]
[1721304194754,3.25764436,3467.8,3467.2,2.88412]
[1721304195083,3.25764436,3467.8,3467.3,0.06778012]
[1721304195292,0.84804436,3467.8,3467.4,2.88398]
[1721304195500,0.30375359,3468.0,3467.4,2.88398]
[1721304195688,3.18725359,3468.0,3467.5,0.06770517]
[1721304195986,3.18725359,3468.0,3467.2,2.88411]
[1721304196194,3.18725359,3468.0,3467.6,0.06767979]
[1721304196402,3.18725359,3468.0,3467.2,2.88411]
[1721304196687,3.18725359,3468.0,3467.3,0.06774934]
[1721304196845,0.85166336,3467.9,3467.3,2.95177934]
[1721304197045,0.85166336,3467.9,3467.3,0.06774934]
[1721304197669,3.73526336,3467.9,3467.3,0.06774934]
[1721304197979,3.73526336,3467.9,3467.1,2.88423]
[1721304198153,3.73526336,3467.9,3467.4,0.06769537]
[1721304198351,3.58172067,3467.8,3467.1,2.88423]
[1721304198552,3.63973045,3467.8,3467.5,0.06767219]
[1721304198772,2.88384,3467.6,3467.0,3.0]
[1721304198977,2.88384,3467.6,3466.9,5.88441]
[1721304199445,2.3807,3467.7,3467.0,2.88431]
[1721304199781,3.0621034,3467.7,3467.0,2.88431]
[1721304199990,5.9459134,3467.7,3467.0,2.88431]
[1721304200187,5.9459134,3467.7,3466.9,3.0]
[1721304200389,2.88384,3467.6,3466.9,3.0]
[1721304201360,2.88405,3467.4,3466.9,3.0]
[1721304201550,2.88409,3467.3,3466.7,3.0]
[1721304201884,2.88398,3467.5,3466.7,3.0]
[1721304202096,2.884,3467.4,3466.7,3.0]
[1721304203270,3.0621034,3467.7,3466.3,2.8849]
[1721304203476,2.43870978,3467.7,3466.3,2.8849]
[1721304203646,2.88433,3467.0,3466.3,2.8849]
[1721304204258,2.88423,3467.2,3466.3,2.8849]
[1721304204469,2.3807,3467.7,3466.5,2.8847]
[1721304204793,2.88419,3467.2,3466.5,2.8847]
[1721304205091,2.88419,3467.2,3466.6,2.88466]
[1721304205244,2.88419,3467.2,3466.4,5.88476]
[1721304205445,2.88419,3467.2,3466.5,2.88471]
[1721304206188,5.32769,3467.1,3466.6,0.06793363]
[1721304206347,2.88442,3466.9,3466.6,0.06793363]
[1721304206549,2.88442,3466.9,3465.9,5.27551]
[1721304206751,5.82700978,3466.8,3466.7,0.06791044]
[1721304207061,2.88498,3466.3,3465.4,2.88562]
[1721304207405,2.88518,3466.0,3465.5,0.06603086]
[1721304207602,0.05800978,3465.9,3465.5,0.06603086]
[1721304207754,0.05800978,3465.9,3465.2,2.88582]
[1721304207954,0.05800978,3465.9,3465.6,0.06600765]
[1721304208277,0.05800978,3465.9,3465.7,0.06598444]
[1721304208487,0.64083776,3465.9,3465.1,5.25144]
[1721304208796,2.88527,3465.9,3465.8,0.06596124]
[1721304209006,2.88527,3465.9,3465.1,2.88584]
[1721304209295,2.88536,3465.8,3465.2,0.06610049]
[1721304209506,2.88542,3465.7,3465.2,0.06610049]
[1721304209721,2.88542,3465.7,3465.0,2.88597]
[1721304209867,2.88542,3465.7,3465.3,0.06607727]
[1721304210072,3.709239,3465.7,3465.0,2.88597]
[1721304210267,2.88542,3465.7,3465.1,0.0661237]
[1721304210504,2.88555,3465.6,3465.1,0.0661237]
[1721304210734,2.88545,3465.7,3465.1,0.0661237]
[1721304211007,2.88545,3465.7,3465.0,2.88598]
[1721304211178,2.4675,3465.9,3465.2,0.06638651]
[1721304211382,2.4675,3465.9,3465.1,2.95228972]
[1721304211596,2.88535,3465.8,3465.3,0.0663633]
[1721304211763,2.88535,3465.8,3465.2,0.06638651]
[1721304211963,2.88535,3465.8,3465.4,0.06633569]
[1721304212204,2.88535,3465.8,3465.3,0.0663589]
[1721304212410,2.88524,3466.0,3465.5,0.06631248]
[1721304212706,3.462296,3465.9,3465.6,0.06628927]
[1721304213107,2.88534,3465.8,3465.0,5.77191]
[1721304213303,2.88534,3465.8,3465.7,0.06626607]
[1721304213507,2.88534,3465.8,3465.0,2.88593]
[1721304213668,2.88534,3465.8,3465.7,0.06626607]
[1721304213868,3.5201036,3465.8,3465.1,2.88591]
[1721304214104,2.88551,3465.6,3464.7,2.88618]
[1721304214310,2.88567,3465.4,3465.2,0.06639312]
[1721304214609,2.94367978,3465.4,3464.5,2.88635]
[1721304214781,2.88567,3465.4,3464.7,2.88625]
[1721304215323,4.84139,3465.8,3464.9,2.88606]
[1721304215610,2.88511,3466.1,3465.2,2.88578]
[1721304215785,2.88511,3466.1,3464.7,2.3679]
[1721304215786,2.88511,3466.1,3465.3,2.88575]
[1721304215985,2.88506,3466.2,3465.5,2.88556]
[1721304216370,2.88506,3466.2,3465.6,0.06640594]
[1721304216769,2.88511,3466.1,3465.6,0.06640594]
[1721304217223,2.88511,3466.1,3465.3,2.88575]
[1721304217425,2.88511,3466.1,3465.7,0.06638274]
[1721304217578,2.88511,3466.1,3465.3,2.88575]
[1721304217579,2.88508,3466.2,3465.5,2.88557]
[1721304217778,3.173428,3466.3,3465.5,2.88557]
[1721304218220,2.88502,3466.2,3465.6,0.06640594]
[1721304219034,2.88522,3466.0,3465.6,0.06640594]
[1721304219214,2.88532,3465.9,3465.1,2.88585]
[1721304219386,2.88543,3465.7,3464.9,2.88604]
[1721304219586,2.88543,3465.7,3465.0,3.0]
[1721304220096,2.88551,3465.6,3465.1,0.06682123]
[1721304220507,2.88551,3465.6,3464.8,2.88616]
[1721304220753,5.95530598,3465.7,3465.2,0.06679801]
[1721304220754,2.8856,3465.5,3465.2,0.06679801]
[1721304220914,2.8856,3465.5,3464.8,2.88616]
[1721304221130,2.8856,3465.5,3465.3,0.0667748]
[1721304221309,0.8840906,3465.4,3464.8,2.88616]
[1721304221632,2.8856,3465.5,3464.6,5.77264]
[1721304221830,2.94367978,3465.4,3464.7,0.06688767]
[1721304222287,2.88575,3465.3,3464.7,2.95312767]
[1721304223829,2.88567,3465.4,3464.7,2.95312767]
[1721304224032,2.8856,3465.5,3464.7,2.95312767]
[1721304224340,5.95531598,3465.7,3464.7,2.95312767]
[1721304224341,2.88572,3465.4,3464.7,2.95312767]
[1721304224489,2.88572,3465.4,3464.8,2.88616]
[1721304224692,2.88529,3465.9,3464.9,2.95293766]
[1721304224924,2.88546,3465.7,3464.9,2.95293766]
[1721304225121,3.66186153,3465.9,3465.0,2.886]
[1721304225326,3.66186153,3465.9,3465.1,2.4017]
[1721304225531,3.66186153,3465.9,3465.1,5.35441123]
[1721304225891,2.88542,3465.7,3465.1,0.06682123]
[1721304226199,0.65472815,3465.7,3465.1,2.88586]
[1721304226405,3.66186153,3465.9,3465.2,0.06679801]
[1721304226725,3.66186153,3465.9,3465.2,2.95256801]
[1721304226929,3.66186153,3465.9,3465.3,2.88573]
[1721304227228,2.88519,3466.0,3465.3,2.88573]
[1721304227403,2.88519,3466.0,3465.4,0.06675159]
[1721304227729,2.88509,3466.1,3465.4,0.06675159]
[1721304227930,2.88496,3466.3,3465.4,2.95241159]
[1721304227931,2.88503,3466.2,3465.4,2.95241159]
[1721304229329,0.60572527,3466.6,3465.9,2.88523]
[1721304229633,0.60572527,3466.6,3466.1,2.88508]
[1721304230008,0.60572527,3466.6,3466.2,0.06651091]
[1721304231433,0.60572527,3466.6,3466.3,2.88485]
[1721304231808,0.60572527,3466.6,3466.4,2.95124452]
[1721304232804,0.60572527,3466.6,3466.4,0.06646452]
[1721304233201,0.60572527,3466.6,3466.2,3.0]
[1721304233429,3.76270795,3466.6,3465.5,5.29025]
[1721304233628,2.88483,3466.5,3465.7,2.88541]
[1721304233805,2.88483,3466.4,3465.7,2.88541]
[1721304234012,3.64034036,3466.4,3465.8,0.06660371]
[1721304234198,2.88498,3466.3,3465.8,0.06660371]
[1721304234530,2.88507,3466.2,3465.4,2.88565]
[1721304234828,0.75551036,3466.4,3465.2,7.32]
[1721304235001,0.60572527,3466.6,3465.9,2.88519]
[1721304235229,0.60572527,3466.6,3466.0,2.88509]
[1721304235408,0.60572527,3466.6,3466.1,2.88507]
[1721304235605,0.60572527,3466.6,3466.1,2.95160411]
[1721304238328,0.60572527,3466.6,3466.3,2.88484]
[1721304238648,0.60572527,3466.6,3466.4,0.06646452]
[1721304238855,0.60572527,3466.6,3466.3,2.88484]
[1721304239148,0.60572527,3466.6,3466.4,0.06646452]
[1721304239351,0.60572527,3466.6,3466.4,2.95128452]
[1721304239651,0.60572527,3466.6,3466.5,2.95119132]
[1721304239837,0.60572527,3466.6,3466.5,0.06644132]
[1721304240035,0.60572527,3466.6,3466.4,2.88478]
[1721304240240,0.60572527,3466.6,3466.5,2.95119132]
[1721304240639,0.60572527,3466.6,3466.5,0.06644132]
[1721304240821,0.60572527,3466.6,3466.4,2.88482]
[1721304241022,0.60572527,3466.6,3466.5,0.06604743]
[1721304242151,0.60572527,3466.6,3466.4,2.88481]
[1721304242448,0.60572527,3466.6,3466.5,0.06604963]
[1721304243456,0.60572527,3466.6,3465.8,2.88529]
[1721304243457,0.60572527,3466.6,3465.9,5.28943]
[1721304243657,3.49040527,3466.6,3466.0,3.06617662]
[1721304244227,3.94405572,3466.6,3466.0,3.06617662]
[1721304244721,3.94405572,3466.6,3466.0,0.06617662]
[1721304245284,2.88492,3466.3,3466.1,0.06618642]
[1721304245564,2.885,3466.2,3465.4,5.88566]
[1721304246342,2.885,3466.2,3465.5,2.88557]
[1721304246568,5.3618,3466.2,3465.6,3.0]
[1721304247569,2.88525,3465.9,3465.6,3.0]
[1721304247740,2.88525,3465.9,3465.3,9.7242]
[1721304248072,2.88525,3465.9,3465.4,3.0]
[1721304248236,2.88514,3466.1,3465.4,3.0]
[1721304248669,2.88514,3466.1,3465.4,5.88566]
[1721304248862,2.885,3466.2,3465.5,2.88558]
[1721304249047,2.88509,3466.1,3465.4,5.88566]
[1721304249245,2.88517,3466.0,3465.4,3.0]
[1721304250259,2.88532,3465.9,3465.4,3.0]
[1721304250570,2.88551,3465.6,3465.3,7.32]
[1721304250915,3.51681257,3466.3,3464.6,2.88631]
[1721304250916,2.3488,3465.8,3464.6,2.3518]
[1721304251212,2.88588,3465.2,3464.7,0.06686344]
[1721304251587,2.88588,3465.2,3464.4,2.88643]
[1721304251787,2.88588,3465.2,3464.8,0.06684022]
[1721304252010,2.88588,3465.2,3464.5,2.8864]
[1721304252375,2.88588,3465.2,3464.6,0.06688666]
[1721304253378,0.60572527,3465.1,3464.6,0.06688666]
[1721304254321,0.60572527,3465.1,3464.7,0.06686344]
[1721304254506,0.60572527,3465.1,3464.5,2.88641]
[1721304254719,0.60572527,3465.1,3464.6,0.06688666]
[1721304254900,0.60572527,3465.1,3464.6,2.95321666]
[1721304255123,3.46883798,3465.2,3464.6,2.95321666]
[1721304255124,0.60572527,3465.2,3464.6,2.95321666]
[1721304255430,3.49155527,3465.2,3464.6,2.95321666]
[1721304255726,2.94392978,3465.1,3464.6,0.06688666]
[1721304255892,3.49164527,3465.1,3464.4,2.88643]
[1721304256096,3.49164527,3465.1,3464.5,2.95349162]
[1721304256294,2.88592,3465.1,3464.5,2.95349162]
[1721304257031,2.88592,3465.1,3464.5,0.06708162]
[1721304257905,2.88592,3465.1,3464.5,2.95349162]
[1721304258408,2.88592,3465.1,3464.5,0.06708162]
[1721304258807,2.88592,3465.1,3464.5,2.95349162]
[1721304259206,3.49157527,3465.2,3464.6,2.88633]
[1721304259397,3.49160527,3465.2,3464.6,2.88633]
[1721304259598,3.49160527,3465.2,3464.7,0.06702196]
[1721304260005,3.49160527,3465.2,3464.5,2.88636]
[1721304260214,3.49160527,3465.2,3464.8,0.06700095]
[1721304260422,4.34107295,3465.2,3464.5,2.88636]
[1721304260712,4.39908273,3465.2,3464.5,2.88636]
[1721304260911,4.34107295,3465.2,3464.6,0.06721692]
[1721304261103,4.39908273,3465.2,3464.6,0.06721692]
[1721304261300,0.60572527,3465.1,3464.6,0.06721692]
[1721304261559,0.60572527,3464.9,3464.0,2.88681]
[1721304261702,3.49195527,3464.8,3464.7,0.06490304]
[1721304261894,2.88628,3464.7,3464.0,2.88681]
[1721304262196,2.88628,3464.7,3464.1,2.95179237]
[1721304262396,0.60572527,3464.8,3464.2,2.88665]
[1721304262708,0.60572527,3464.9,3464.3,0.06501574]
[1721304263024,3.49166527,3465.1,3464.5,2.88641]
[1721304263202,2.88594,3465.1,3464.5,2.88641]
[1721304263409,2.88594,3465.1,3464.6,0.06498131]
[1721304263823,2.88594,3465.1,3464.5,2.88641]
[1721304264127,6.37730527,3465.3,3464.6,0.06498131]
[1721304264454,0.60572527,3465.2,3464.6,2.88633]
[1721304264609,0.60572527,3465.3,3464.7,2.88624]
[1721304264794,0.60572527,3465.3,3464.7,0.06492065]
[1721304264994,3.49154527,3465.3,3464.7,0.06492065]
[1721304265188,2.88583,3465.2,3464.6,2.88632]
[1721304265407,2.88583,3465.2,3464.8,0.06489744]
[1721304265628,2.88583,3465.2,3464.7,0.06492065]
[1721304265868,2.88598,3465.1,3464.9,0.06487422]
[1721304265994,2.88598,3465.1,3464.1,5.88671]
[1721304265995,2.88608,3464.9,3464.8,0.06489744]
[1721304266196,2.88619,3464.8,3464.1,2.8867]
[1721304266430,2.88619,3464.8,3464.2,3.0]
[1721304266604,2.88619,3464.8,3464.2,5.95169676]
[1721304269539,2.88619,3464.8,3464.2,2.95169676]
[1721304269767,2.88601,3465.0,3464.2,2.95169676]
[1721304269928,2.88601,3465.0,3464.3,2.88658]
[1721304270134,2.88601,3465.0,3464.4,0.06499032]
[1721304271028,2.88609,3464.9,3464.4,0.06499032]
[1721304272475,3.23527153,3464.9,3464.4,0.06499032]
[1721304272770,2.88617,3464.8,3464.5,0.06501336]
[1721304273186,2.88617,3464.8,3464.2,2.88666]
[1721304273326,2.88617,3464.8,3464.6,0.06499014]
[1721304273527,2.88617,3464.8,3464.2,2.88666]
[1721304273750,2.88617,3464.8,3464.3,0.06505981]
[1721304275131,3.61689646,3464.8,3464.3,0.06505981]
[1721304275471,2.94426978,3464.7,3464.4,0.06503658]
[1721304275675,2.94426978,3464.7,3464.0,5.19439]
[1721304275911,2.94426978,3464.7,3464.1,2.88674]
[1721304276029,2.94426978,3464.7,3464.1,2.95184626]
[1721304276473,2.88626,3464.7,3464.1,2.95184626]
[1721304276957,3.55888668,3464.8,3464.2,2.88666]
[1721304277283,0.60572527,3465.0,3464.2,2.88666]
[1721304277477,2.88608,3464.9,3464.3,0.06515231]
[1721304277642,2.88621,3464.8,3464.3,0.06515231]
[1721304277845,3.64308837,3465.0,3464.3,0.06515231]
[1721304278178,2.8861,3464.9,3464.3,2.95171231]
[1721304281597,2.8861,3464.9,3464.3,0.06515231]
[1721304282575,2.88616,3464.8,3464.3,0.06515231]
[1721304282780,0.05800978,3464.7,3464.3,0.06515231]
[1721304283617,0.05800978,3464.7,3464.1,2.88674]
[1721304283750,2.88616,3464.8,3464.4,0.06512909]
[1721304284103,3.5297595,3464.8,3464.5,0.06510587]
[1721304284448,3.5297595,3464.8,3464.2,2.88665]
[1721304284650,3.5297595,3464.8,3464.3,0.06515231]
[1721304288491,4.13548477,3464.8,3464.3,0.06515231]
[1721304288695,1.24932477,3464.8,3464.3,2.95172231]
[1721304288903,0.60572527,3464.8,3464.4,2.88648]
[1721304289084,0.60572527,3464.8,3464.5,0.06518074]
[1721304289471,0.60572527,3464.7,3464.6,2.2579]
[1721304289669,0.60572527,3464.7,3464.6,2.32305751]
[1721304290400,0.90740569,3464.8,3464.6,2.32305751]
[1721304290602,0.6045312,3464.7,3464.6,2.32305751]
[1721304291515,0.90740569,3464.8,3464.6,2.32305751]
[1721304292233,0.60464945,3464.9,3464.6,2.32305751]
[1721304292421,0.60464945,3465.0,3464.7,2.88617]
[1721304292574,0.60464945,3465.0,3464.8,2.88616]
[1721304293074,0.60464945,3465.0,3464.9,2.95114583]
[1721304293513,0.90740569,3465.1,3464.9,2.95114583]
[1721304294617,1.20999585,3465.2,3464.9,2.95114583]
[1721304294618,0.90740569,3465.0,3464.9,2.95114583]
[1721304295519,1.20999585,3465.1,3464.9,2.95114583]
[1721304296599,1.20999585,3465.0,3464.9,2.95114583]
[1721304300254,1.20999585,3465.0,3464.9,0.06506583]
[1721304300410,0.27245169,3465.0,3464.9,0.06506583]
[1721304300744,0.27245169,3465.0,3464.3,2.88652]
[1721304300745,4.38303018,3465.0,3464.3,2.88652]
[1721304301079,0.90878244,3464.5,3464.4,0.06060439]
[1721304301199,1.21170993,3464.6,3464.4,0.06060439]
[1721304301398,1.21170993,3464.6,3464.3,2.88652]
[1721304301602,0.90877375,3464.5,3464.3,2.88652]
[1721304301802,0.90877375,3464.5,3464.4,0.06065944]
[1721304302261,0.90877375,3464.5,3464.2,2.88662]
[1721304302406,0.90879753,3464.4,3464.3,2.88658]
[1721304302606,0.90879753,3464.4,3464.3,2.94730672]
[1721304303147,0.90879753,3464.4,3464.3,0.06072672]
[1721304305423,1.2723152,3464.4,3463.9,2.3116]
[1721304305629,0.60590737,3464.2,3463.9,5.3116]
[1721304306652,0.90879753,3464.3,3464.0,2.88683]
[1721304307009,0.6059118,3464.2,3464.1,2.88675]
[1721304307673,0.6059118,3464.2,3464.1,5.7735]
[1721304307835,0.90879753,3464.3,3464.2,2.88666]
[1721304307836,0.6059118,3464.3,3464.2,2.88666]
[1721304308362,0.6059118,3464.4,3464.3,2.88658]
[1721304308736,0.90879753,3464.5,3464.3,2.88658]
[1721304309675,0.90879753,3464.5,3464.1,5.77344]
[1721304309983,0.60589346,3464.4,3464.3,2.88658]
[1721304311181,0.60589346,3464.4,3464.3,2.94733755]
[1721304311535,0.90879753,3464.6,3464.5,2.88641]
[1721304311865,0.90879753,3464.6,3464.5,2.94718057]
[1721304313167,0.90879753,3464.6,3464.5,0.06077057]
[1721304313348,1.12084828,3464.6,3464.5,0.06077057]
[1721304313560,1.12091268,3464.6,3464.5,0.06077057]
[1721304313890,1.12091268,3464.6,3464.5,0.06077717]
[1721304314041,1.12091268,3464.6,3464.2,2.88666]
[1721304314237,0.60590293,3464.4,3464.3,2.88658]
[1721304314443,0.60590293,3464.4,3464.3,5.77316]
[1721304314644,0.60590293,3464.4,3464.3,8.02666]
[1721304317142,0.60590293,3464.4,3464.1,2.88674]
[1721304317338,0.60590293,3464.4,3464.1,5.77343]
[1721304317569,0.60590293,3464.4,3464.1,2.88669]
[1721304317770,0.60590293,3464.4,3464.0,2.3331]
[1721304317771,0.60590293,3464.4,3464.2,2.88665]
[1721304318601,0.60590293,3464.4,3464.1,2.8867]
[1721304318790,0.60590293,3464.4,3463.9,3.0]
[1721304318949,0.60590293,3464.2,3463.9,3.0]
[1721304319282,2.88643,3464.5,3463.9,3.0]
[1721304319283,0.60590293,3464.1,3463.9,3.0]
[1721304320161,0.60590293,3464.1,3463.9,5.88687]
[1721304320497,0.60590293,3464.2,3463.9,5.88687]
[1721304321129,0.60590293,3464.2,3463.9,3.0]
[1721304321410,0.60590293,3464.0,3463.8,7.32]
[1721304321758,0.60590293,3463.9,3463.8,7.32]
[1721304323381,0.60590293,3464.0,3463.8,7.32]
[1721304324398,0.60590293,3464.0,3463.7,2.88707]
[1721304326015,0.60590293,3464.1,3463.9,2.2989]
[1721304326270,0.60590293,3464.3,3464.2,5.77332]
[1721304326544,0.60590293,3464.3,3464.2,2.88666]
[1721304326719,0.60590293,3464.3,3464.2,2.94768748]
[1721304327126,0.60590293,3464.3,3464.2,0.06102748]
[1721304327521,0.60590293,3464.3,3464.0,2.88681]
[1721304327725,0.60590293,3464.3,3464.2,0.0609702]
[1721304329255,4.89737541,3464.3,3463.7,3.0]
[1721304329547,0.60571315,3463.8,3463.6,2.88713]
[1721304330368,0.60571315,3463.9,3463.6,2.88713]
[1721304331120,0.60571315,3463.9,3463.7,2.88708]
[1721304334057,0.60571315,3463.9,3463.5,2.88724]
[1721304334254,0.60571315,3463.9,3463.6,3.0]
[1721304334435,0.60571315,3464.0,3463.6,5.88714]
[1721304335523,0.60571315,3464.0,3463.7,2.88707]
[1721304337157,0.60571315,3464.0,3463.9,2.88691]
[1721304337859,0.60571315,3464.1,3464.0,2.88683]
[1721304338233,0.60571315,3464.2,3464.1,2.88675]
[1721304339065,1.21142631,3464.5,3464.4,2.8865]
[1721304339066,0.60571315,3464.5,3464.4,2.8865]
[1721304341073,0.60571315,3464.5,3464.4,2.99417069]
[1721304343322,0.60571315,3464.5,3464.4,0.10767069]
[1721304344736,0.60571315,3464.5,3464.4,2.99417069]
[1721304345675,0.90856973,3464.6,3464.4,0.10767069]
[1721304346033,1.27191763,3464.6,3464.2,2.88665]
[1721304346284,0.60562029,3464.4,3464.3,0.10769527]
[1721304346583,5.2715,3464.4,3464.3,0.10769527]
[1721304346878,2.88662,3464.3,3463.6,10.20714]
[1721304347073,2.88662,3464.3,3463.6,2.88714]
[1721304347074,0.60573972,3463.9,3463.6,2.88714]
[1721304347284,0.60573972,3463.9,3463.7,0.107737]
[1721304347981,0.60573972,3463.9,3463.7,3.107737]
[1721304348136,0.60573972,3463.8,3463.7,0.107737]
[1721304348707,1.06584549,3463.9,3463.4,3.0]
[1721304348893,0.60569589,3463.7,3463.4,3.0]
[1721304349039,0.60569589,3463.7,3463.4,5.88733]
[1721304351842,0.60569589,3463.7,3463.5,2.88724]
[1721304352045,0.60569589,3463.7,3463.6,3.0]
[1721304352284,0.60569589,3463.8,3463.6,3.0]
[1721304354988,0.60569589,3463.8,3463.5,2.88724]
[1721304354989,1.16695038,3463.8,3463.3,2.8874]
[1721304355290,0.60569589,3463.6,3463.4,2.88732]
[1721304355950,0.60569589,3463.6,3463.1,5.21445]
[1721304356156,0.60569589,3463.6,3463.2,3.0]
[1721304356338,0.60569589,3463.6,3463.3,5.7747]
[1721304356544,0.60569589,3463.6,3463.3,5.88263889]
[1721304356744,0.60569589,3463.6,3463.3,2.99527889]
[1721304356941,0.60569589,3463.7,3463.3,0.10793889]
[1721304357249,0.60569589,3463.9,3463.8,2.887]
[1721304357551,0.60569589,3463.9,3463.8,2.99500545]
[1721304358796,0.60569589,3463.9,3463.8,0.10800545]
[1721304359154,0.60569589,3463.9,3463.6,2.88716]
[1721304359368,0.87827438,3463.9,3463.8,0.10800545]
[1721304359578,0.87827438,3463.9,3463.7,0.10803003]
[1721304359793,0.87827438,3463.9,3463.8,0.10800545]
[1721304359955,0.87827438,3463.9,3463.5,2.88719]
[1721304360167,0.60569589,3463.9,3463.5,2.88719]
[1721304360376,0.60569589,3463.9,3463.6,0.10805461]
[1721304360881,0.60569589,3463.9,3463.7,0.10803003]
[1721304361597,0.60569589,3463.8,3463.7,0.10803003]
[1721304363491,0.60569589,3463.8,3463.4,2.88727]
[1721304363647,0.60569589,3463.8,3463.7,0.10803003]
[1721304363863,0.60569589,3463.8,3463.5,2.88724]
[1721304364067,0.60569589,3463.8,3463.7,0.10803003]
[1721304364268,0.60569589,3463.8,3463.6,0.10805461]
[1721304364480,0.60569589,3463.8,3463.7,0.10803003]
[1721304364766,0.60569589,3463.8,3463.5,2.88724]
[1721304364968,0.60569589,3463.8,3463.6,0.10805461]
[1721304365174,0.60569589,3463.8,3463.4,2.88727]
[1721304365507,0.60569589,3463.8,3463.5,2.99529123]
[1721304365803,0.60569589,3463.8,3463.6,2.88711]
[1721304365965,0.60569589,3463.8,3463.7,5.77416]
[1721304366167,0.60569589,3464.0,3463.7,2.99513206]
[1721304366362,0.60569589,3464.1,3463.7,2.99513206]
[1721304366562,0.60569589,3464.1,3463.9,2.88685]
[1721304366776,0.60569589,3464.2,3464.0,2.88683]
[1721304367003,0.60569589,3464.2,3464.0,2.99480832]
[1721304367174,0.60569589,3464.2,3464.1,2.88675]
[1721304367377,0.90860958,3464.3,3464.1,2.88675]
[1721304367617,0.90860958,3464.2,3464.1,2.99470374]
[1721304369384,8.5511486,3464.2,3464.1,0.10787661]
[1721304369587,8.47286007,3464.2,3462.9,2.88771]
[1721304369884,0.60548976,3463.2,3463.1,2.98486663]
[1721304370408,0.60548976,3463.3,3463.1,2.98486663]
[1721304370812,0.66349954,3463.3,3463.1,0.09730663]
[1721304370987,0.60548976,3463.3,3462.9,5.77541]
[1721304371310,0.05800978,3463.2,3463.0,0.09733123]
[1721304371718,0.60548976,3463.3,3463.0,0.09733123]
[1721304371888,0.60548976,3463.3,3463.0,2.98499123]
[1721304373711,0.40548976,3463.3,3463.0,2.98499123]
[1721304374115,0.90823465,3463.5,3463.0,2.98499123]
[1721304374434,0.90823465,3463.6,3463.2,2.88744]
[1721304374635,0.90823465,3463.7,3463.0,0.09733123]
[1721304374928,0.90823465,3463.7,3463.2,5.77485]
[1721304375157,0.90823465,3463.7,3463.3,2.88736]
[1721304375292,0.90823465,3463.7,3463.3,2.98461746]
[1721304375708,0.90823465,3463.8,3463.3,2.98461746]
[1721304376820,2.20075467,3463.8,3463.3,2.98461746]
[1721304377151,2.20075467,3463.8,3463.4,2.8873]
[1721304377496,2.20075467,3463.8,3463.5,0.09720828]
[1721304378002,2.20075467,3463.8,3463.6,0.0971837]
[1721304378306,2.20075467,3463.8,3463.4,2.8873]
[1721304378541,0.90823465,3463.8,3463.7,0.09715912]
[1721304378696,0.90823465,3463.8,3463.5,2.88725]
[1721304378903,0.90823465,3464.0,3463.7,0.09715912]
[1721304379219,3.79498465,3464.1,3463.5,2.88722]
[1721304379418,3.79498465,3464.1,3463.6,0.0971837]
[1721304379595,3.79498465,3464.1,3463.5,2.88722]
[1721304379795,0.90823465,3464.1,3463.6,0.0971837]
[1721304380132,0.90823465,3464.1,3463.6,2.88715]
[1721304380327,0.15123472,3464.2,3463.7,0.09715912]
[1721304380328,1.05946937,3464.2,3463.7,0.09715912]
[1721304380634,0.90823465,3464.1,3463.7,0.09715912]
[1721304380791,0.51570989,3464.1,3463.7,0.09715912]
[1721304381295,1.42394454,3464.1,3463.7,0.09715912]
[1721304382491,2.3283,3464.0,3463.7,0.09715912]
[1721304382917,3.23653465,3464.0,3463.7,0.09715912]
[1721304383120,2.3283,3464.0,3463.7,0.09715912]
[1721304383422,0.51144588,3463.9,3463.7,0.09715912]
[1721304383635,1.11634006,3463.9,3463.7,0.09715912]
[1721304384154,0.60489418,3463.8,3463.7,0.09715912]
[1721304384516,0.60489418,3463.8,3463.7,2.98423912]
[1721304386481,0.90823465,3463.9,3463.7,0.09715912]
[1721304386625,1.33809487,3463.9,3463.7,0.09715912]
[1721304387240,0.90823465,3463.9,3463.7,0.09715912]
[1721304388058,0.90823465,3463.9,3463.8,2.887]
[1721304388246,0.90823465,3463.9,3463.8,2.98432753]
[1721304389438,1.21097953,3464.0,3463.8,2.98432753]
[1721304390756,1.21097953,3463.9,3463.8,2.98432753]
[1721304393074,1.51403304,3464.0,3463.8,2.98432753]
[1721304393378,1.21161219,3463.9,3463.8,2.98432753]
[1721304394768,0.26955568,3463.9,3463.8,2.98432753]
[1721304397374,1.48120929,3463.9,3463.8,2.98432753]
[1721304397676,1.48123465,3463.9,3463.8,2.98432753]
[1721304399463,1.21167897,3463.9,3463.8,2.98432753]
[1721304407767,1.21167897,3463.9,3463.8,5.87132753]
[1721304412560,1.51480836,3464.0,3463.9,2.88691]
[1721304412961,1.51480836,3464.0,3463.9,2.98422392]
[1721304413604,0.15123472,3464.2,3464.0,2.88681]
[1721304413968,0.15123472,3464.2,3464.1,0.09726476]
[1721304414213,1.42592426,3464.2,3464.1,0.09726476]
[1721304414715,1.42592527,3464.2,3464.1,0.09726476]
[1721304416413,3.24426532,3464.2,3464.1,0.09726476]
[1721304416801,0.55936343,3464.2,3464.1,0.09726476]
[1721304417108,3.11933577,3464.2,3464.1,0.09726476]
[1721304417311,3.24481193,3464.2,3464.1,0.09726476]
[1721304418013,1.42593927,3464.2,3464.1,0.09726476]
[1721304420312,1.42590209,3464.2,3464.1,0.09726476]
[1721304420518,3.24540281,3464.2,3464.1,0.09726476]
[1721304421930,0.28265255,3464.2,3464.1,5.87076476]
[1721304422134,1.51637093,3464.3,3464.2,5.77332]
[1721304422313,1.21267889,3464.3,3464.2,8.08122]
[1721304422615,1.51637093,3464.5,3464.3,5.77316]
[1721304422616,1.21267889,3464.4,3464.3,5.77316]
[1721304422982,1.81905528,3464.8,3464.7,2.88624]
[1721304423233,3.81600693,3464.8,3464.7,2.88624]
[1721304423380,3.81600693,3464.8,3464.7,2.98332662]
[1721304423586,3.81561346,3464.8,3464.7,0.09708662]
[1721304424050,3.81561346,3464.8,3464.6,2.88629]
[1721304424187,2.54098045,3464.8,3464.7,0.09708662]